bitfinex/quotes_ETHUSD_20250425
["timestamp","ask_amount","ask_price","bid_price","bid_amount"]
[1745541982714,5.64726403,1770.8,1770.7,0.23826691]
[1745541983138,5.64726403,1770.8,1770.6,0.7578]
[1745541984733,5.64733073,1770.8,1770.6,0.7578]
[1745541984899,5.64629165,1771.1,1770.6,0.7578]
[1745541985106,5.64725901,1770.8,1770.6,0.7578]
[1745541986034,5.64706103,1770.9,1770.6,0.7578]
[1745541986416,5.64728115,1770.8,1770.6,0.7578]
[1745541987639,5.64706103,1770.9,1770.6,0.7578]
[1745541988039,5.64730732,1770.8,1770.6,0.7578]
[1745541988240,5.64748404,1770.7,1770.2,5.64890526]
[1745541988415,5.64798105,1770.6,1770.3,0.7746]
[1745541989237,5.64834101,1770.5,1770.3,0.7746]
[1745541989537,5.64831631,1770.5,1770.3,0.7746]
[1745541990338,5.64716512,1770.8,1770.3,0.7746]
[1745541990536,5.64842738,1770.5,1770.3,0.7746]
[1745541990835,11.29682413,1770.5,1770.3,0.7746]
[1745541991042,5.64839675,1770.5,1770.3,0.7746]
[1745541991209,5.64837703,1770.5,1770.3,0.7746]
[1745541995040,5.64835089,1770.5,1770.3,0.7746]
[1745541995245,5.64844103,1770.4,1770.3,0.7746]
[1745541996112,6.77812022,1770.4,1770.3,0.24870108]
[1745541996333,5.6490792,1770.2,1770.1,0.8281]
[1745541996526,6.77812022,1770.4,1770.1,0.8281]
[1745541996527,5.64889697,1770.3,1770.1,0.8281]
[1745541997146,5.64889697,1770.3,1769.9,6.44822535]
[1745541997348,5.6490792,1770.2,1769.9,6.44822535]
[1745541997655,5.64889697,1770.3,1769.9,6.44822535]
[1745541998152,5.64909746,1770.2,1769.9,6.44822535]
[1745541998354,5.64889697,1770.3,1769.9,12.0980743]
[1745541998539,5.64889697,1770.3,1769.9,6.44804895]
[1745541999216,11.2979312,1770.3,1769.9,6.44804895]
[1745541999417,5.64889697,1770.3,1769.9,6.44804895]
[1745541999613,5.64889697,1770.3,1770.0,5.64971163]
[1745542000057,11.29728124,1770.4,1770.0,5.64955805]
[1745542000244,11.29728124,1770.4,1770.0,6.85932778]
[1745542000854,5.64877956,1770.3,1770.0,6.85932778]
[1745542001359,5.6485916,1770.4,1770.1,0.8242]
[1745542001560,5.6485916,1770.4,1770.1,6.47351146]
[1745542001857,5.64797139,1770.6,1770.3,0.8242]
[1745542002064,5.64792274,1770.6,1770.3,0.8242]
[1745542002228,5.64813513,1770.5,1770.3,0.8242]
[1745542002431,11.2959825,1770.6,1770.3,0.8242]
[1745542002957,5.64792274,1770.6,1770.3,0.8242]
[1745542003147,11.29596019,1770.6,1770.3,0.8242]
[1745542004172,6.43369478,1770.5,1770.1,6.47381961]
[1745542004340,5.64829478,1770.5,1770.1,12.12300053]
[1745542004541,5.64793255,1770.6,1770.3,0.8246]
[1745542004931,11.29477285,1770.8,1770.3,6.47317652]
[1745542005275,5.64762207,1770.7,1770.3,7.12049417]
[1745542005431,5.64762207,1770.7,1770.3,7.12047089]
[1745542005969,5.64762207,1770.7,1770.4,5.64835168]
[1745542006465,5.64734322,1770.8,1770.5,5.64809575]
[1745542006766,5.64734322,1770.8,1770.5,0.8193]
[1745542006970,5.64734322,1770.8,1770.5,6.46738766]
[1745542007494,6.21138787,1771.0,1770.6,5.64763419]
[1745542007698,5.64606728,1771.2,1770.9,0.8193]
[1745542008174,5.64514757,1771.5,1771.1,6.46539141]
[1745542008384,11.29036877,1771.5,1771.1,7.11193055]
[1745542008580,5.64538062,1771.4,1771.1,1.46583914]
[1745542008759,5.64538062,1771.4,1771.1,0.8193]
[1745542009367,5.64538062,1771.4,1771.1,6.46549861]
[1745542009589,5.64538062,1771.4,1771.1,0.8193]
[1745542009996,5.64445184,1771.7,1771.3,5.64549074]
[1745542010194,5.64445184,1771.7,1771.3,11.93758701]
[1745542010491,5.64445184,1771.7,1771.3,6.29209627]
[1745542010696,6.41403274,1771.9,1771.4,5.6452445]
[1745542010905,5.64383274,1771.9,1771.5,0.7538]
[1745542011059,5.64350996,1772.0,1771.7,5.64427324]
[1745542011254,5.64344842,1772.0,1771.8,0.8076]
[1745542011495,5.64344842,1772.0,1771.8,1.04436817]
[1745542011671,5.64320106,1772.1,1771.8,1.04436817]
[1745542012071,11.28651446,1772.1,1771.8,1.04436817]
[1745542012361,5.64336589,1772.0,1771.8,1.04436817]
[1745542014188,5.64336589,1772.0,1771.8,0.23676817]
[1745542014189,5.64365934,1771.9,1771.8,0.23676817]
[1745542014562,5.64365934,1771.9,1771.6,0.8134]
[1745542014765,5.64398608,1771.8,1771.6,1.45921942]
[1745542014965,5.64365934,1771.9,1771.7,0.23682009]
[1745542015302,5.64365934,1771.9,1771.6,1.45921942]
[1745542015598,5.64365934,1771.9,1771.8,0.23640974]
[1745542015802,5.64365934,1771.9,1771.7,0.23682009]
[1745542016004,5.64365934,1771.9,1771.8,0.2364749]
[1745542016408,5.6435051,1772.0,1771.8,0.2364749]
[1745542016567,11.28712883,1772.0,1771.8,0.2364749]
[1745542016769,5.64365934,1771.9,1771.8,0.2364749]
[1745542016984,5.64365934,1771.9,1771.6,7.1038226]
[1745542017187,5.64365934,1771.9,1771.8,0.23002098]
[1745542017399,5.6435051,1772.0,1771.7,0.23036618]
[1745542017591,5.64334085,1772.0,1771.8,0.23002098]
[1745542017799,5.64365934,1771.9,1771.8,0.23002098]
[1745542017971,5.64365934,1771.9,1771.6,0.8134]
[1745542018173,5.64365934,1771.9,1771.8,0.23002098]
[1745542018375,5.64365934,1771.9,1771.7,0.23036618]
[1745542018572,5.64365934,1771.9,1771.8,0.23002098]
[1745542018877,5.64365934,1771.9,1771.6,0.8134]
[1745542019084,5.64365934,1771.9,1771.8,0.23002098]
[1745542019297,5.64365934,1771.9,1771.6,0.8134]
[1745542019495,5.64334085,1772.0,1771.8,0.23002098]
[1745542019713,5.64365934,1771.9,1771.7,0.23036618]
[1745542019882,5.64365934,1771.9,1771.6,6.45784003]
[1745542020419,5.64365934,1771.9,1771.6,0.8134]
[1745542020585,0.7884,1772.1,1771.6,0.8134]
[1745542020586,5.64334085,1772.0,1771.6,0.8134]
[1745542020777,5.64380412,1771.9,1771.6,0.8134]
[1745542020978,5.64293254,1772.2,1771.9,0.7932]
[1745542022300,5.64260289,1772.3,1771.9,6.43680393]
[1745542022509,5.64270504,1772.2,1771.9,6.43680393]
[1745542022885,5.64270504,1772.2,1771.9,0.7932]
[1745542023098,11.28564811,1772.2,1771.9,0.7932]
[1745542023294,5.64270504,1772.2,1771.9,0.7932]
[1745542024029,5.64305908,1772.1,1771.9,0.7932]
[1745542026125,5.64258544,1772.3,1772.0,0.22807258]
[1745542026321,11.28396329,1772.5,1772.1,6.46854478]
[1745542026642,5.64163078,1772.6,1772.2,5.64242038]
[1745542026985,11.28331359,1772.6,1772.3,0.22703744]
[1745542027190,5.64177684,1772.5,1772.3,0.22703744]
[1745542027427,6.39446725,1772.4,1772.3,0.22703744]
[1745542027726,6.39459222,1772.4,1772.1,0.8258]
[1745542027903,5.64219222,1772.4,1772.1,0.8258]
[1745542028224,5.64239605,1772.3,1772.1,0.8258]
[1745542028428,5.64219222,1772.4,1772.1,0.8258]
[1745542029124,6.41293474,1772.6,1772.1,0.8258]
[1745542029125,5.64263399,1772.3,1772.1,0.8258]
[1745542030726,5.64270398,1772.2,1771.9,0.8295]
[1745542031240,5.64270398,1772.2,1771.9,6.47311751]
[1745542031540,11.28517872,1772.3,1771.9,6.47311751]
[1745542031713,5.64254749,1772.3,1771.9,6.47311751]
[1745542031913,5.64254749,1772.3,1771.9,7.68466266]
[1745542032243,5.64254749,1772.3,1771.9,7.68466071]
[1745542032624,5.64254749,1772.3,1772.0,5.64329677]
[1745542032943,5.64254749,1772.3,1771.9,13.32809239]
[1745542033145,11.28522861,1772.3,1771.9,7.68462827]
[1745542033346,5.64254749,1772.3,1771.9,7.68462827]
[1745542033645,11.28521481,1772.3,1771.9,7.68462827]
[1745542033847,5.64254749,1772.3,1772.0,6.41174819]
[1745542034217,5.64227422,1772.4,1772.1,0.7646]
[1745542034957,5.64240435,1772.3,1772.1,0.7646]
[1745542035168,11.28460741,1772.4,1772.1,0.7646]
[1745542035319,5.64227422,1772.4,1772.1,1.48221771]
[1745542035813,5.64227422,1772.4,1772.1,7.12522255]
[1745542036014,5.64193735,1772.5,1772.1,12.76782424]
[1745542036214,5.64159092,1772.6,1772.2,5.64245295]
[1745542036438,5.64159092,1772.6,1772.3,0.7571]
[1745542036948,11.2833042,1772.6,1772.3,0.7571]
[1745542037550,5.64178545,1772.5,1772.3,0.7571]
[1745542038317,5.64206725,1772.4,1772.3,0.7571]
[1745542038621,5.64178545,1772.5,1772.2,0.7571]
[1745542038827,5.64178545,1772.5,1772.2,7.67585318]
[1745542040459,5.64211938,1772.4,1772.2,2.03315238]
[1745542040954,5.6423856,1772.3,1772.1,0.71761771]
[1745542041157,5.6423856,1772.3,1772.0,0.8317]
[1745542041158,5.64282844,1772.2,1772.0,0.8317]
[1745542043880,5.6423856,1772.3,1772.0,0.8317]
[1745542044037,11.28456382,1772.4,1772.0,7.12239667]
[1745542044448,5.64219954,1772.4,1772.0,7.12239667]
[1745542044729,5.64219954,1772.4,1772.0,7.12233693]
[1745542045148,5.64219954,1772.4,1772.0,12.76544006]
[1745542045347,5.64219954,1772.4,1772.0,12.76544568]
[1745542045542,5.64219954,1772.4,1772.1,5.6429681]
[1745542045942,5.64219954,1772.4,1772.0,7.12232956]
[1745542046652,5.64248254,1772.3,1772.0,7.12232956]
[1745542046868,5.64248254,1772.3,1772.0,1.47921425]
[1745542047368,5.64248254,1772.3,1772.0,0.8317]
[1745542047533,11.28510639,1772.3,1772.0,0.8317]
[1745542047862,5.64274938,1772.2,1772.0,0.8317]
[1745542048041,5.6430224,1772.1,1771.8,0.8011]
[1745542048237,5.6430224,1772.1,1771.8,7.565857]
[1745542048437,5.64274938,1772.2,1771.8,7.565857]
[1745542048438,5.64274938,1772.2,1771.9,5.64362241]
[1745542048644,6.44193174,1772.3,1771.9,5.64362241]
[1745542049048,6.44193174,1772.3,1771.9,5.64351564]
[1745542049375,5.64219405,1772.4,1772.1,0.8011]
[1745542049730,5.64219405,1772.4,1772.1,6.4440885]
[1745542049925,5.64188606,1772.5,1772.1,7.65264425]
[1745542050139,5.64188606,1772.5,1772.2,5.64263504]
[1745542050343,5.64188606,1772.5,1772.1,7.65264425]
[1745542050567,5.64188606,1772.5,1772.1,13.29545298]
[1745542050739,5.64188606,1772.5,1772.1,7.6526389]
[1745542051626,11.28387345,1772.5,1772.1,7.6526389]
[1745542051869,5.64188606,1772.5,1772.1,13.29544955]
[1745542052595,5.64188606,1772.5,1772.1,13.29544412]
[1745542052743,11.28386351,1772.5,1772.1,7.65263539]
[1745542052942,5.64188606,1772.5,1772.1,7.65263539]
[1745542053281,5.64188606,1772.5,1772.1,13.29543031]
[1745542053586,5.6421544,1772.4,1772.1,2.00983017]
[1745542053741,5.64239007,1772.3,1772.1,0.8011]
[1745542054459,6.4458544,1772.4,1772.1,0.8011]
[1745542054665,0.8037,1772.4,1771.8,0.8101]
[1745542054865,0.8037,1772.4,1771.9,5.64360247]
[1745542054866,5.64301488,1772.2,1771.9,5.64360247]
[1745542055183,5.64251519,1772.3,1771.9,5.64360247]
[1745542055381,5.64271359,1772.2,1771.9,5.64360247]
[1745542055588,5.64251519,1772.3,1771.9,5.64354127]
[1745542055757,5.64251519,1772.3,1772.0,5.64331225]
[1745542055960,5.64271159,1772.2,1772.0,0.22081181]
[1745542056776,5.6430224,1772.1,1772.0,0.22081181]
[1745542056990,5.64358889,1772.0,1771.6,14.16334205]
[1745542057158,5.64418882,1771.8,1771.4,5.64506227]
[1745542057357,6.40308882,1771.8,1771.4,6.39806227]
[1745542057552,6.40308882,1771.8,1771.4,8.42235549]
[1745542057777,5.64439542,1771.7,1771.4,8.42235549]
[1745542057963,6.40308882,1771.8,1771.4,8.42235549]
[1745542058449,5.64379187,1771.9,1771.5,5.64482105]
[1745542058677,5.64379187,1771.9,1771.5,12.69624685]
[1745542058884,5.64379187,1771.9,1771.5,7.0514258]
[1745542059780,6.40240897,1772.0,1771.6,6.39725047]
[1745542059781,5.64350897,1772.0,1771.6,6.39725047]
[1745542060083,5.64319491,1772.1,1771.7,5.64401121]
[1745542060313,13.40810463,1772.4,1771.9,5.64343972]
[1745542060314,6.42759696,1772.3,1771.9,5.64343972]
[1745542060585,5.64249696,1772.3,1771.9,5.64343972]
[1745542061086,5.64249696,1772.3,1772.0,5.64330162]
[1745542061379,5.64223023,1772.4,1772.1,0.7512]
[1745542061560,6.42701954,1772.5,1772.1,0.7512]
[1745542061561,5.64177177,1772.5,1772.2,5.64257042]
[1745542061747,5.64161919,1772.6,1772.2,5.64252718]
[1745542062552,5.64161919,1772.6,1772.2,5.64249072]
[1745542062746,5.64161919,1772.6,1772.3,0.56424907]
[1745542063831,5.64191283,1772.5,1772.3,0.56424907]
[1745542063992,0.7837,1772.7,1772.1,5.5252]
[1745542064163,5.6424903,1772.3,1772.1,4.774]
[1745542064354,6.41017792,1772.4,1772.0,6.39883547]
[1745542064692,5.64240181,1772.3,1772.1,0.63988355]
[1745542064863,6.41017792,1772.4,1772.0,0.7556]
[1745542065064,6.41017792,1772.4,1772.0,6.39880451]
[1745542065365,12.05248634,1772.4,1772.0,6.39880451]
[1745542065687,5.64239123,1772.3,1772.0,6.39880451]
[1745542065886,5.64239123,1772.3,1772.1,0.63988045]
[1745542066053,6.41017238,1772.4,1772.1,0.63988045]
[1745542066254,5.64227238,1772.4,1772.1,0.63988045]
[1745542066469,5.64197341,1772.5,1772.2,0.7628]
[1745542066669,5.64197341,1772.5,1772.2,1.4673489]
[1745542067456,0.7794,1772.7,1772.2,1.4673489]
[1745542067659,5.64199789,1772.5,1772.2,1.4673489]
[1745542067991,5.64208137,1772.4,1772.2,1.4673489]
[1745542068690,5.64208137,1772.4,1772.0,5.64313458]
[1745542068896,5.64208137,1772.4,1772.0,6.40591894]
[1745542069276,5.64200293,1772.5,1772.1,5.64286117]
[1745542069582,5.64215812,1772.4,1772.0,6.40591894]
[1745542069787,0.7794,1772.7,1772.1,6.28349897]
[1745542069788,5.64201745,1772.5,1772.1,6.28349897]
[1745542069993,5.64220191,1772.4,1772.1,0.64059189]
[1745542070174,5.64248283,1772.3,1772.0,6.40591894]
[1745542071000,5.64248283,1772.3,1772.1,0.16589905]
[1745542071162,6.46656004,1772.4,1772.1,0.16589905]
[1745542071363,5.64207691,1772.4,1772.1,5.80887981]
[1745542072397,5.64207691,1772.4,1772.1,0.16589905]
[1745542072588,5.64149537,1772.6,1772.2,6.43639731]
[1745542072789,5.64177543,1772.5,1772.2,6.60195142]
[1745542073369,5.64177543,1772.5,1772.2,0.95945411]
[1745542073703,5.64149537,1772.6,1772.2,6.60191602]
[1745542074005,5.64149537,1772.6,1772.3,6.30251596]
[1745542074174,5.64149537,1772.6,1772.3,6.46772516]
[1745542074391,5.64149537,1772.6,1772.3,0.8254008]
[1745542074567,5.64149537,1772.6,1772.3,6.46776615]
[1745542075104,5.64125789,1772.7,1772.3,6.46760312]
[1745542075308,5.64125789,1772.7,1772.4,0.62264026]
[1745542075472,5.64147066,1772.6,1772.5,0.16402841]
[1745542075673,5.64125789,1772.7,1772.3,11.28439389]
[1745542075968,5.64125789,1772.7,1772.4,5.80642225]
[1745542076168,5.64125789,1772.7,1772.4,0.16437324]
[1745542076371,5.64154085,1772.6,1772.4,0.16437324]
[1745542076612,5.64154085,1772.6,1772.3,5.64236809]
[1745542076777,5.64154085,1772.6,1772.5,0.16402841]
[1745542076978,5.64154085,1772.6,1772.4,0.72861005]
[1745542077295,5.64154085,1772.6,1772.5,0.16402841]
[1745542078008,11.28266385,1772.7,1772.5,0.16402841]
[1745542078511,5.64143066,1772.6,1772.5,0.16402841]
[1745542079300,5.64125789,1772.7,1772.5,0.16402841]
[1745542079613,11.2826644,1772.7,1772.5,0.16402841]
[1745542079921,6.46631392,1773.0,1772.5,0.94982841]
[1745542080078,5.64000267,1773.1,1772.8,0.7858]
[1745542080284,5.63988973,1773.1,1772.9,0.16084168]
[1745542080576,5.64047605,1772.9,1772.8,0.64267472]
[1745542080781,5.64001046,1773.1,1772.7,5.64093111]
[1745542081609,11.28014228,1773.1,1772.7,5.64093111]
[1745542081771,11.28012946,1773.1,1772.7,5.64093111]
[1745542082107,5.64001046,1773.1,1772.8,0.56409311]
[1745542082276,5.63958267,1773.2,1772.9,0.7677]
[1745542082477,5.63900304,1773.4,1772.9,6.40801067]
[1745542082709,5.63923446,1773.3,1773.0,5.64001638]
[1745542082907,5.63923446,1773.3,1772.9,6.40801067]
[1745542083232,5.6396541,1773.2,1773.0,0.64080107]
[1745542083636,5.63923446,1773.3,1773.0,0.64080107]
[1745542083843,5.63966661,1773.2,1773.0,0.64080107]
[1745542084042,5.63985049,1773.1,1772.9,0.7677]
[1745542084757,5.64015792,1773.0,1772.8,0.56409311]
[1745542085057,5.64015792,1773.0,1772.7,0.7865]
[1745542085615,5.63965148,1773.2,1772.7,6.427398]
[1745542085820,5.63965148,1773.2,1772.8,5.64051101]
[1745542086018,5.63904669,1773.4,1773.0,6.45977293]
[1745542086245,5.63922022,1773.3,1773.0,6.45977293]
[1745542086408,5.63922022,1773.3,1773.1,0.16030211]
[1745542086608,11.27869443,1773.3,1773.1,0.16030211]
[1745542086842,5.63922022,1773.3,1773.1,0.16030211]
[1745542087028,5.63895469,1773.4,1773.1,0.16030211]
[1745542087243,5.6392158,1773.3,1773.1,0.16030211]
[1745542087415,5.6392158,1773.3,1773.1,0.94493927]
[1745542087811,5.63895469,1773.4,1773.1,0.94493927]
[1745542088040,6.43850893,1773.5,1773.1,6.584648]
[1745542088211,5.63870893,1773.5,1773.1,6.58463039]
[1745542088519,5.63898195,1773.4,1773.2,1.47716304]
[1745542088723,5.63898195,1773.4,1773.3,0.15930057]
[1745542089713,5.63856855,1773.5,1773.3,0.15930057]
[1745542090334,5.63888575,1773.4,1773.3,0.15930057]
[1745542092328,6.42598575,1773.4,1773.3,0.15930057]
[1745542092515,5.63946581,1773.3,1772.9,11.20602184]
[1745542092716,5.63946581,1773.3,1773.0,0.15672046]
[1745542093049,6.42618433,1773.4,1773.0,5.79674787]
[1745542093249,6.42618433,1773.4,1773.0,11.43677528]
[1745542093454,12.06532488,1773.4,1773.0,5.79674787]
[1745542093659,12.06532488,1773.4,1773.0,7.66548731]
[1745542093660,5.63929147,1773.3,1773.0,7.66548731]
[1745542094567,5.63929147,1773.3,1773.0,2.0254599]
[1745542095461,6.42612313,1773.4,1773.0,7.66535905]
[1745542095760,12.06530699,1773.4,1773.0,7.66535905]
[1745542096245,5.63924587,1773.3,1773.0,7.66535905]
[1745542096447,5.63924587,1773.3,1773.0,2.0254599]
[1745542097119,5.63924587,1773.3,1773.0,7.66560961]
[1745542098262,5.63954439,1773.2,1773.0,2.0254599]
[1745542098427,5.63954439,1773.2,1773.0,0.15672046]
[1745542099153,5.63924587,1773.3,1773.0,5.79686694]
[1745542100219,5.63924587,1773.3,1773.0,0.15672046]
[1745542101133,5.63983982,1773.1,1773.0,0.15672046]
[1745542101391,6.76779619,1773.1,1773.0,0.15672046]
[1745542102268,7.59519619,1773.1,1773.0,0.15672046]
[1745542102422,5.64036043,1773.0,1772.6,11.23212602]
[1745542102746,5.64061897,1772.9,1772.6,11.23212602]
[1745542103051,5.64061897,1772.9,1772.6,5.5909]
[1745542105027,5.64110699,1772.8,1772.6,4.775]
[1745542105226,5.64111242,1772.7,1772.6,4.775]
[1745542105618,5.64111242,1772.7,1772.4,0.7732]
[1745542106020,5.64174894,1772.5,1772.4,0.7732]
[1745542106227,5.64148368,1772.6,1772.3,5.549]
[1745542106922,5.64125385,1772.7,1772.3,11.19137287]
[1745542107459,5.64145934,1772.6,1772.3,11.19137287]
[1745542107867,5.64125385,1772.7,1772.3,11.19137287]
[1745542108069,5.64116097,1772.7,1772.4,5.64197175]
[1745542108363,5.64116097,1772.7,1772.3,12.00275147]
[1745542108957,11.28252917,1772.7,1772.3,12.00275147]
[1745542109162,5.64116097,1772.7,1772.3,12.00275147]
[1745542109349,5.64116097,1772.7,1772.3,12.00266879]
[1745542109551,11.28251336,1772.7,1772.3,12.00266879]
[1745542109859,5.64147091,1772.6,1772.3,12.00266879]
[1745542111059,5.64116097,1772.7,1772.4,5.64204595]
[1745542111258,6.20504123,1772.8,1772.4,5.64188622]
[1745542111460,11.84608141,1772.8,1772.4,5.64188622]
[1745542111631,6.20504123,1772.8,1772.4,5.64188622]
[1745542112068,5.64111357,1772.7,1772.4,5.64188622]
[1745542113466,11.28250508,1772.7,1772.3,12.76450426]
[1745542113668,5.64111357,1772.7,1772.3,12.76450426]
[1745542113965,11.28248243,1772.7,1772.3,12.76450426]
[1745542114566,5.64159298,1772.6,1772.3,5.549]
[1745542114769,5.64159298,1772.6,1772.3,11.19123807]
[1745542115462,5.64124661,1772.7,1772.3,11.19123807]
[1745542115972,5.64148242,1772.6,1772.4,0.1486984]
[1745542117170,5.64174894,1772.5,1772.4,0.1486984]
[1745542122743,5.64064282,1772.9,1772.4,0.9004984]
[1745542122943,5.64064282,1772.9,1772.7,0.7607]
[1745542123179,5.64029789,1773.0,1772.8,0.13788991]
[1745542123481,5.64003273,1773.1,1772.8,0.13788991]
[1745542123914,5.64003273,1773.1,1772.8,5.77857786]
[1745542124074,5.6401914,1773.0,1772.8,0.13788991]
[1745542124381,5.64003273,1773.1,1772.8,0.13788991]
[1745542124587,5.64033256,1773.0,1772.8,0.13788991]
[1745542124948,6.42317605,1772.9,1772.8,0.13788991]
[1745542125147,6.42317605,1772.9,1772.5,6.40833004]
[1745542125380,5.64047605,1772.9,1772.6,5.77954385]
[1745542125683,5.64047605,1772.9,1772.6,0.13822316]
[1745542126186,6.423,1773.0,1772.6,6.9983663]
[1745542126577,5.64057232,1772.9,1772.6,1.35703224]
[1745542127683,5.64057232,1772.9,1772.6,6.9984245]
[1745542128047,5.64063173,1772.9,1772.6,1.35703224]
[1745542128684,5.64063173,1772.9,1772.6,6.99845039]
[1745542128886,5.64063173,1772.9,1772.7,0.69984504]
[1745542129286,5.64063173,1772.9,1772.8,0.13664245]
[1745542129651,5.6408379,1772.8,1772.6,1.21880908]
[1745542129851,5.64113302,1772.7,1772.5,0.7668]
[1745542130178,5.64123196,1772.7,1772.5,0.7668]
[1745542130984,5.64123196,1772.7,1772.6,0.13733216]
[1745542131750,5.64095307,1772.8,1772.6,0.13733216]
[1745542132366,5.64111242,1772.7,1772.6,0.13733216]
[1745542133155,11.28199005,1772.8,1772.6,0.13733216]
[1745542134695,5.64111242,1772.7,1772.6,0.13733216]
[1745542135594,5.64095307,1772.8,1772.6,0.13733216]
[1745542135798,11.2820403,1772.8,1772.6,0.13733216]
[1745542135983,5.64111242,1772.7,1772.6,0.13733216]
[1745542136795,5.64137238,1772.7,1772.3,11.18219351]
[1745542136966,5.64171127,1772.6,1772.3,7.56503541]
[1745542137174,5.64171127,1772.6,1772.3,13.20732096]
[1745542137575,5.6409869,1772.8,1772.4,5.64185403]
[1745542137792,5.6409869,1772.8,1772.4,11.28370811]
[1745542137993,5.6406409,1772.9,1772.5,6.41434349]
[1745542138174,11.28142667,1772.9,1772.5,7.61996324]
[1745542138473,5.64080552,1772.8,1772.5,7.61996324]
[1745542138797,5.6406409,1772.9,1772.5,7.61986141]
[1745542139663,5.64030244,1773.0,1772.7,0.7574]
[1745542139898,5.64030244,1773.0,1772.7,1.39726082]
[1745542140099,5.64004212,1773.1,1772.7,6.39828717]
[1745542140263,5.64025427,1773.0,1772.7,6.39828717]
[1745542140603,5.64004212,1773.1,1772.8,5.64070146]
[1745542140895,5.64004212,1773.1,1772.7,6.39828717]
[1745542141099,5.64016178,1773.0,1772.7,6.39828717]
[1745542141401,5.63993361,1773.1,1772.8,5.64076969]
[1745542141566,5.63993361,1773.1,1772.7,13.2431454]
[1745542141994,5.63993361,1773.1,1772.8,5.64079092]
[1745542142518,5.63993361,1773.1,1772.7,13.24312873]
[1745542142699,5.63993361,1773.1,1772.8,5.64078534]
[1745542142903,6.46759243,1773.2,1772.8,6.96508803]
[1745542143402,5.63962547,1773.2,1773.0,0.7739]
[1745542145484,11.27938192,1773.2,1773.0,0.7739]
[1745542145815,5.63983982,1773.1,1773.0,0.7739]
[1745542146017,5.63983982,1773.1,1773.0,0.90295021]
[1745542146315,11.27937825,1773.2,1773.0,0.90295021]
[1745542147503,5.63983982,1773.1,1773.0,0.90295021]
[1745542148114,5.63962547,1773.2,1773.0,0.90295021]
[1745542149391,5.63962547,1773.2,1773.0,1.55728387]
[1745542149819,5.63962547,1773.2,1773.0,0.90295021]
[1745542152188,5.63983982,1773.1,1773.0,0.90295021]
[1745542152518,5.63962547,1773.2,1773.0,0.90295021]
[1745542152724,11.2794026,1773.2,1773.0,0.90295021]
[1745542152924,5.63983982,1773.1,1773.0,0.90295021]
[1745542153226,5.63983982,1773.1,1773.0,0.12905021]
[1745542154021,5.63962547,1773.2,1773.0,0.12905021]
[1745542154392,5.63983982,1773.1,1773.0,0.12905021]
[1745542154724,6.41843982,1773.1,1773.0,0.12905021]
[1745542155102,5.64026491,1773.0,1772.7,11.21071058]
[1745542155304,5.64026491,1773.0,1772.7,12.89590265]
[1745542156423,6.41843982,1773.1,1772.7,18.53683454]
[1745542156628,6.41843982,1773.1,1772.7,12.89572396]
[1745542156788,6.41843982,1773.1,1772.7,12.89568337]
[1745542157121,11.27945181,1773.2,1772.8,5.64056891]
[1745542157333,5.63986271,1773.1,1772.8,5.64056891]
[1745542158244,5.63969504,1773.2,1772.8,5.64056891]
[1745542158410,5.63994609,1773.1,1772.8,5.64056891]
[1745542159414,5.63969504,1773.2,1772.8,11.2811391]
[1745542159616,5.63969504,1773.2,1772.8,5.64056891]
[1745542159839,5.63992732,1773.1,1772.7,12.89573131]
[1745542160144,5.63992732,1773.1,1772.7,18.53663061]
[1745542160824,5.63992732,1773.1,1772.7,12.89569137]
[1745542161020,5.63992732,1773.1,1772.8,5.76977416]
[1745542161744,1.12795895,1773.1,1772.8,0.12898327]
[1745542162047,5.64027482,1773.0,1772.8,0.12898327]
[1745542162542,5.64017995,1773.0,1772.8,0.12898327]
[1745542162848,6.39769896,1773.1,1772.8,0.12898327]
[1745542163047,5.64021325,1773.0,1772.8,0.12898327]
[1745542163221,6.39769896,1773.1,1772.8,0.12898327]
[1745542163814,6.39769896,1773.1,1772.8,5.769761]
[1745542164245,6.39769896,1773.1,1772.8,0.12898327]
[1745542164616,5.64026772,1773.0,1772.8,0.12898327]
[1745542165138,6.39769896,1773.1,1772.8,0.12898327]
[1745542166050,5.64037349,1773.0,1772.8,0.12898327]
[1745542166217,5.64047605,1772.9,1772.8,0.12898327]
[1745542166423,5.64117677,1772.7,1772.4,10.40187836]
[1745542166741,5.64083077,1772.8,1772.5,0.13001791]
[1745542166943,5.64143066,1772.6,1772.5,0.13001791]
[1745542167735,5.64143066,1772.6,1772.3,0.7661]
[1745542167933,5.64143066,1772.6,1772.5,0.13001791]
[1745542168131,5.64143066,1772.6,1772.4,0.13036286]
[1745542168460,5.64143066,1772.6,1772.5,0.13001791]
[1745542168634,5.64143066,1772.6,1772.3,7.61349166]
[1745542168834,5.64143066,1772.6,1772.4,0.13036286]
[1745542170163,5.64124126,1772.7,1772.4,0.13036286]
[1745542170328,5.64092119,1772.8,1772.4,5.77221017]
[1745542170530,5.64092119,1772.8,1772.5,0.8255]
[1745542170833,5.64061122,1772.9,1772.6,0.12967299]
[1745542171037,11.16529304,1773.0,1772.6,5.77084113]
[1745542171038,5.64029304,1773.0,1772.6,5.77084113]
[1745542171251,0.765,1773.2,1772.8,5.64075415]
[1745542171252,6.40467441,1773.2,1772.8,5.64075415]
[1745542171567,5.63943004,1773.3,1773.0,6.46563525]
[1745542171723,11.27889138,1773.3,1773.0,0.8255]
[1745542172064,11.27889138,1773.3,1773.1,0.12713511]
[1745542172720,5.63943004,1773.3,1773.1,0.12713511]
[1745542172926,11.27889556,1773.3,1773.1,0.12713511]
[1745542173165,5.63952176,1773.2,1773.1,0.12713511]
[1745542173528,5.63943004,1773.3,1773.1,0.12713511]
[1745542173722,11.27892695,1773.3,1773.1,0.12713511]
[1745542174261,5.63943004,1773.3,1773.1,0.12713511]
[1745542175364,5.63952176,1773.2,1773.1,0.12713511]
[1745542181254,5.63987145,1773.1,1772.8,11.1640264]
[1745542181454,5.63987145,1773.1,1772.8,12.96285457]
[1745542182057,5.63952176,1773.2,1772.8,18.60332057]
[1745542182362,5.63952176,1773.2,1772.8,12.96271069]
[1745542182560,11.27933348,1773.2,1772.8,12.96271069]
[1745542183572,5.63984094,1773.1,1772.8,12.96271069]
[1745542183774,5.63984094,1773.1,1772.9,1.29627107]
[1745542183932,5.63984094,1773.1,1772.8,7.32212817]
[1745542184133,5.64047605,1772.9,1772.8,4.761]
[1745542184370,5.64047605,1772.9,1772.6,0.8159]
[1745542185035,5.64092281,1772.8,1772.5,4.76]
[1745542185241,5.64092281,1772.8,1772.5,10.40174002]
[1745542185437,5.64092281,1772.8,1772.5,12.1651229]
[1745542186268,11.28136716,1772.9,1772.5,12.1651229]
[1745542187487,11.28136716,1772.9,1772.5,12.16495688]
[1745542187488,5.64061097,1772.9,1772.5,12.16495688]
[1745542187763,5.64061097,1772.9,1772.6,5.64140735]
[1745542188773,5.64061097,1772.9,1772.5,12.16495688]
[1745542188995,5.64061097,1772.9,1772.5,6.52338288]
[1745542188996,5.64089882,1772.8,1772.5,6.52338288]